lending/lending_fUSD_20240621
["ID","MTS","AMOUNT","RATE_DAILY","PERIOD"]
[330110645,1718997035337,-325.65019838,0.00021024,2]
[330110646,1718997035347,-172.58,0.0002107,2]
[330110647,1718997035356,-300.0,0.00021321,2]
[330110648,1718997035366,-150.0,0.00021364,2]
[330110649,1718997035375,-150.0,0.00021474,2]
[330110650,1718997035384,-150.0,0.00021475,2]
[330110651,1718997035394,-150.0,0.00021494,2]
[330110652,1718997035403,-150.0,0.0002151,2]
[330110653,1718997035413,-465.62458284,0.00021555,2]
[330110654,1718997035422,-300.0,0.000216,7]
[330110655,1718997035432,-150.0,0.00021601,2]
[330110656,1718997035441,-300.0,0.00021617,2]
[330110657,1718997035451,-150.0,0.00021623,2]
[330110658,1718997035460,-180.0,0.00021626,2]
[330110659,1718997035469,-150.0,0.00021628,2]
[330110660,1718997035478,-150.0,0.00021634,2]
[330110661,1718997035488,-187.89378223,0.00021643,2]
[330110662,1718997035498,-1069.4164457,0.00021643,2]
[330110663,1718997035508,-1069.4164457,0.00021643,2]
[330110664,1718997035519,-367.38,0.00021644,2]
[330110665,1718997035528,-154.97,0.00021644,2]
[330110666,1718997035538,-150.0,0.00021648,2]
[330110667,1718997035547,-300.0,0.00021658,2]
[330110668,1718997035558,-150.0,0.00021662,2]
[330110669,1718997035569,-800.0,0.00021669,2]
[330110670,1718997035578,-159.55,0.00021669,2]
[330110671,1718997035587,-150.0,0.00021677,2]
[330110672,1718997035598,-150.0,0.00021678,2]
[330110673,1718997035607,-150.0,0.00021679,2]
[330110674,1718997035617,-9829.46579015,0.0002169,2]
[330110675,1718997035626,-437.90975551,0.0002169,2]
[330110676,1718997035638,-150.0,0.00021691,2]
[330110677,1718997035648,-700.0,0.000217,7]
[330110678,1718997035657,-325.31590197,0.00021706,2]
[330110679,1718997035669,-451.86136272,0.00021706,2]
[330110680,1718997035678,-337.997,0.00021706,2]
[330110681,1718997035688,-150.0,0.00021709,2]
[330110682,1718997035698,-88594.0950138,0.00021716,2]
[330110683,1718997035707,-339.25724207,0.00021717,2]
[330110684,1718997035716,-155.0,0.00021733,2]
[330110685,1718997035726,-155.0,0.00021733,2]
[330110686,1718997035736,-150.0,0.00021734,2]
[330110687,1718997035745,-150.0,0.00021749,2]
[330110688,1718997035754,-150.0,0.00021793,2]
[330110689,1718997035764,-164.71848981,0.00021798,2]
[330110690,1718997035773,-1100.0,0.000218,7]
[330110691,1718997035783,-72479.6889472,0.000218,2]
[330110692,1718997035792,-500.0,0.00021806,2]
[330110693,1718997035801,-245000.0,0.00021806,2]
[330110694,1718997035811,-281.1116,0.00021806,2]
[330110695,1718997035820,-948.6865,0.00021806,2]
[330110696,1718997035830,-39380.1465,0.00021806,2]
[330110697,1718997035839,-10000.0,0.00021806,2]
[330110698,1718997035850,-34531.8055,0.00021807,2]
[330110699,1718997035860,-60399.7407893,0.00021807,2]
[330110700,1718997035869,-169.75322856,0.00021807,2]
[330110701,1718997035879,-308.79440374,0.00021808,2]
[330110702,1718997035888,-273.88989458,0.00021808,2]
[330110703,1718997035898,-150.0,0.00021809,2]
[330110704,1718997035907,-150.0,0.00021813,2]
[330110705,1718997035918,-159.7660222,0.00021816,2]
[330110706,1718997035927,-155.0,0.00021816,2]
[330110707,1718997035937,-1000.0,0.00021817,2]
[330110708,1718997035947,-100000.0,0.00021817,2]
[330110709,1718997035956,-1000.0,0.00021817,2]
[330110710,1718997035966,-7500.0,0.00021817,2]
[330110711,1718997035976,-172.71621411,0.00021817,2]
[330110712,1718997035985,-150.0,0.00021825,2]
[330110713,1718997035994,-150.0,0.0002183,2]
[330110714,1718997036004,-325.31590191,0.00021838,2]
[330110715,1718997036014,-150.0,0.00021838,2]
[330110716,1718997036023,-689.71,0.00021851,2]
[330110717,1718997036033,-451.86136265,0.00021875,2]
[330110718,1718997036043,-150.0,0.00021898,2]
[330110719,1718997036052,-150.0,0.00021899,2]
[330110720,1718997036062,-1500.0,0.000219,7]
[330110721,1718997036072,-2141.27443,0.000219,2]
[330110722,1718997036082,-150.0,0.000219,2]
[330110723,1718997036092,-290.89568622,0.00021903,2]
[330110724,1718997036101,-150.0,0.00021904,2]
[330110725,1718997036344,-164.71848981,0.00021906,2]
[330110726,1718997036353,-164.71848981,0.00021906,2]
[330110727,1718997036363,-200.0,0.00021906,2]
[330110728,1718997036372,-150.0,0.00021906,2]
[330110729,1718997036381,-193279.170526,0.00021907,2]
[330110730,1718997036390,-151.0,0.00021907,2]
[330110731,1718997036400,-151.0,0.00021907,2]
[330110732,1718997036409,-151.0,0.00021907,2]
[330110733,1718997036421,-151.0,0.00021907,2]
[330110734,1718997036431,-151.0,0.00021907,2]
[330110735,1718997036441,-151.0,0.00021907,2]
[330110736,1718997036450,-151.0,0.00021907,2]
[330110737,1718997036459,-152.909523,0.00021907,2]
[330110738,1718997036469,-151.0,0.00021907,2]
[330110739,1718997036478,-151.0,0.00021907,2]
[330110740,1718997036487,-151.605939,0.00021907,2]
[330110741,1718997036497,-151.0,0.00021907,2]
[330110742,1718997036506,-154.663416,0.00021907,2]
[330110743,1718997036516,-151.0,0.00021907,2]
[330110744,1718997036525,-151.0,0.00021907,2]
[330110745,1718997036534,-151.0,0.00021907,2]
[330110746,1718997036544,-151.0,0.00021907,2]
[330110747,1718997036555,-151.0,0.00021907,2]
[330110748,1718997036570,-151.639851,0.00021907,2]
[330110749,1718997036580,-151.0,0.00021907,2]
[330110750,1718997036590,-151.0,0.00021907,2]
[330110751,1718997036600,-151.0,0.00021907,2]
[330110752,1718997036611,-151.0,0.00021907,2]
[330110753,1718997036621,-151.0,0.00021907,2]
[330110754,1718997036630,-151.0,0.00021907,2]
[330110755,1718997036642,-151.0,0.00021907,2]
[330110756,1718997036652,-151.0,0.00021907,2]
[330110757,1718997036666,-151.0,0.00021907,2]
[330110758,1718997036677,-151.0,0.00021907,2]
[330110759,1718997036686,-151.0,0.00021907,2]
[330110760,1718997036696,-151.0,0.00021907,2]
[330110761,1718997036705,-152.010443,0.00021907,2]
[330110762,1718997036714,-151.0,0.00021907,2]
[330110763,1718997036724,-796.503809,0.00021907,2]
[330110764,1718997036734,-151.606728,0.00021907,2]
[330110765,1718997036743,-796.503809,0.00021907,2]
[330110766,1718997036753,-151.0,0.00021907,2]
[330110767,1718997036763,-151.0,0.00021907,2]
[330110768,1718997036774,-151.0,0.00021907,2]
[330110769,1718997036783,-151.0,0.00021907,2]
[330110770,1718997036793,-151.0,0.00021907,2]
[330110771,1718997036803,-151.0,0.00021907,2]
[330110772,1718997036813,-151.0,0.00021907,2]
[330110773,1718997036823,-151.0,0.00021907,2]
[330110774,1718997036833,-151.0,0.00021907,2]
[330110775,1718997036843,-151.0,0.00021907,2]
[330110776,1718997036854,-180.763065,0.00021907,2]
[330110777,1718997036864,-151.0,0.00021907,2]
[330110778,1718997036874,-180.763065,0.00021907,2]
[330110779,1718997036884,-152.51118,0.00021907,2]
[330110780,1718997036893,-151.0,0.00021907,2]
[330110781,1718997036903,-151.0,0.00021907,2]
[330110782,1718997036915,-3492.0,0.00021907,2]
[330110783,1718997036925,-150.0,0.00021915,2]
[330110784,1718997036935,-150.0,0.00021915,2]
[330110785,1718997036946,-150.0,0.00021916,2]
[330110786,1718997036955,-130739.03772203,0.00021916,2]
[330110787,1718997036970,-2657.2665935,0.00021916,2]
[330110788,1718997037108,-2100.0,0.00021916,2]
[330110789,1718997037120,-1075.9549519,0.00021916,2]
[330110794,1718997040147,-250.0,0.0001941,2]
[330110795,1718997040159,-424.10473515,0.00019422,2]
[330110796,1718997040173,-718.38432019,0.00019422,2]
[330110797,1718997040183,-11207.94406052,0.00021916,2]
[330110798,1718997040197,-1920.38628,0.00021916,2]
[330110799,1718997040210,-7687.92028706,0.00021916,2]
[330110800,1718997040222,-2921.0723228,0.00021916,2]
[330110801,1718997040323,-358.005,0.00021916,2]
[330110802,1718997040336,-1508186.39890497,0.00021916,2]
[330110803,1718997040348,-3378.6,0.00021916,2]
[330110804,1718997040360,-735.33420139,0.00021916,2]
[330110805,1718997040372,-356.76666073,0.00021916,2]
[330110806,1718997041301,-155.0,0.00011199,2]
[330110807,1718997041314,-156.06991169,0.00013336,2]
[330110808,1718997041325,-151.0,0.00021907,2]
[330110809,1718997041342,-9.91008831,0.00021916,2]
[330110810,1718997041359,-993.28232923,0.00021916,2]
[330110811,1718997041375,-2769.60858233,0.00021916,2]
[330110812,1718997041391,-884.29427894,0.00021916,2]
[330110813,1718997041408,-345.1849985,0.00021916,2]
[330110814,1718997041424,-1476.6540648,0.00021916,2]
[330110815,1718997041442,-381.5246191,0.00021916,2]
[330110816,1718997041458,-17186.31877508,0.00021916,2]
[330110817,1718997041473,-3650.30341244,0.00021916,2]
[330110818,1718997041488,-822.32674068,0.00021916,2]
[330110819,1718997041506,-5819.38699998,0.00021916,2]
[330110820,1718997041523,-664.27268814,0.00021916,2]
[330110821,1718997041539,-1606.9052999,0.00021916,2]
[330110823,1718997041689,-1201.23505853,0.00021916,2]
[330110869,1718997044340,-151.0,0.00021907,2]
[330110871,1718997044351,-515.8,0.00021916,2]
[330110873,1718997044365,-794.19253862,0.00021916,2]
[330110876,1718997044378,-1038.13385914,0.00021916,2]
[330110878,1718997044391,-1310.89655929,0.00021916,2]
[330110881,1718997044403,-497.29157494,0.00021916,2]
[330110883,1718997044417,-297.95376087,0.00021916,2]
[330110885,1718997044430,-293.30521316,0.00021916,2]
[330110886,1718997044443,-7140.0,0.00021916,2]
[330110887,1718997044521,-9.94099573,0.00021916,2]
[330110888,1718997044535,-1627.83317733,0.00021916,2]
[330110889,1718997044549,-1014.6249167,0.00021916,2]
[330110890,1718997044569,-715.31212488,0.00021916,2]
[330110891,1718997044583,-1619.88021858,0.00021916,2]
[330110892,1718997044598,-680.3546727,0.00021916,2]
[330110893,1718997044613,-2706.69339215,0.00021916,2]
[330110894,1718997044629,-428.03097649,0.00021916,2]
[330110895,1718997044646,-1446.5731672,0.00021916,2]
[330110896,1718997044837,-2067.55498284,0.00021916,2]
[330110897,1718997044850,-4827.29972345,0.00021916,2]
[330110898,1718997044862,-1371.96137487,0.00021916,2]
[330110899,1718997044873,-735.915,0.00021916,2]
[330110900,1718997044884,-8930.86739672,0.00021916,2]
[330110927,1718997047217,-151.322102,0.00021907,2]
[330110928,1718997047227,-422.10803565,0.00021916,2]
[330110929,1718997047240,-605.67764587,0.00021916,2]
[330110930,1718997047252,-922.42628103,0.00021916,2]
[330110931,1718997047265,-513.85225111,0.00021916,2]
[330110932,1718997047276,-2301.10079766,0.00021916,2]
[330110933,1718997047288,-1763.648638,0.00021916,2]
[330110934,1718997047300,-5083.44199865,0.00021916,2]
[330110938,1718997090565,2999.6359,0.00010996,2]
[330110939,1718997281450,151.81,0.00020133,30]
[330110941,1718997700583,3105.79028967,0.00011002,2]
[330110942,1718997730397,437.90975551,0.00011002,2]
[330110948,1718997842583,1262.77288771,0.00011002,2]
[330110950,1718997883087,1069.4164457,0.00011002,2]
[330110952,1718997939968,151.81,0.00019983,30]
[330110953,1718997950502,373.53901918,0.00011002,2]
[330110954,1718997950855,155.0,0.00011002,2]
[330110955,1718997963892,1500.25333624,0.00011002,2]
[330110956,1718997965053,720.22193745,0.00011002,2]
[330110958,1718998155210,-155.0,0.00011052,2]
[330110959,1718998155233,-226.10887429,0.00011097,2]
[330110960,1718998155256,-546.18400382,0.00012289,2]
[330110961,1718998155277,-155.0,0.00012361,2]
[330110962,1718998155297,-720.22193745,0.00012361,2]
[330110963,1718998155317,-337.11669,0.000138,2]
[330110964,1718998155342,-150.99,0.00014809,2]
[330110965,1718998155361,-169.48516651,0.00015,2]
[330110966,1718998155381,-428.8316772,0.00015051,2]
[330110973,1718998221362,159.55,0.0002511,120]
[330110974,1718998232168,-465.83281295,0.00012147,2]
[330110977,1718998232182,-689.07519098,0.00012147,2]
[330110979,1718998232192,-449.77064763,0.00013336,2]
[330110980,1718998232202,-286.63986562,0.00015051,2]
[330110982,1718998232211,-5000.0,0.00015337,2]
[330110983,1718998232220,-300.0,0.00017259,2]
[330110984,1718998232230,-499.99,0.0001726,2]
[330110985,1718998232239,-684.04,0.00018172,2]
[330110987,1718998232250,-77.49854215,0.00018243,2]
[330110988,1718998232262,-642.7233953,0.00018243,2]
[330110989,1718998232271,-31.72556757,0.00018243,2]
[330110990,1718998232283,-158.1299625,0.00018243,2]
[330110991,1718998232292,-420.0,0.00018846,2]
[330110992,1718998232302,-250.0,0.00019481,2]
[330110993,1718998232311,-500.0,0.00019611,2]
[330110994,1718998232321,-166.38,0.00019686,2]
[330110995,1718998232330,-112.81860003,0.00019738,2]
[330110996,1718998232342,-60.73139997,0.00019738,2]
[330110997,1718998232351,-2299.74376002,0.00019757,2]
[330110998,1718998232638,-19.21623998,0.00019757,2]
[330111000,1718998232647,-1000.0,0.00019907,2]
[330111002,1718998232656,-250.0,0.00019922,2]
[330111004,1718998232665,-1536.21,0.00019924,2]
[330111006,1718998232675,-187.89378223,0.0002,2]
[330111008,1718998232684,-159.55,0.00020088,2]
[330111010,1718998232694,-250.0,0.00020106,2]
[330111012,1718998232704,-1748.12997779,0.00020178,2]
[330111015,1718998232715,-670.92,0.00020178,2]
[330111017,1718998232727,-383.59999996,0.00020178,2]
[330111019,1718998232739,-21077.35002225,0.00020178,2]
[330111021,1718998232750,-684.04,0.00020435,2]
[330111023,1718998232760,-300.0,0.00020752,2]
[330111025,1718998232769,-150.0,0.00020843,2]
[330111027,1718998232778,-150.0,0.00020849,2]
[330111029,1718998232788,-163.41,0.00020874,2]
[330111031,1718998232798,-276.29614339,0.00020948,2]
[330111033,1718998232808,-150.0,0.00020957,2]
[330111035,1718998232819,-150.0,0.0002096,2]
[330111037,1718998232828,-172.02,0.00020965,2]
[330111039,1718998232838,-300.0,0.00020981,2]
[330111041,1718998232847,-300.0,0.00020998,2]
[330111043,1718998232857,-1250.0,0.00021,2]
[330111045,1718998232866,-300.0,0.00021048,2]
[330111047,1718998232876,-150.0,0.00021111,2]
[330111049,1718998232886,-150.0,0.00021161,2]
[330111051,1718998232896,-10000.0,0.00021226,2]
[330111053,1718998232906,-150.0,0.00021232,2]
[330111055,1718998232916,-300.0,0.00021242,2]
[330111057,1718998232925,-300.0,0.00021247,2]
[330111059,1718998232935,-150.0,0.00021328,2]
[330111061,1718998232944,-300.0,0.00021365,2]
[330111063,1718998232960,-150.0,0.00021406,2]
[330111090,1718998233204,-150.0,0.00021451,2]
[330111091,1718998233215,-150.0,0.00021453,2]
[330111092,1718998233225,-150.0,0.00021474,2]
[330111093,1718998233235,-150.0,0.00021486,2]
[330111094,1718998233247,-1500.0,0.0002151,2]
[330111095,1718998233256,-300.0,0.0002153,2]
[330111096,1718998233266,-1500.0,0.00021536,2]
[330111097,1718998233276,-214.54423729,0.00021549,2]
[330111098,1718998233287,-1500.0,0.00021559,2]
[330111099,1718998233297,-300.0,0.00021564,2]
[330111100,1718998233306,-300.0,0.00021567,2]
[330111101,1718998233317,-300.0,0.00021568,2]
[330111102,1718998233326,-150.0,0.00021591,2]
[330111103,1718998233338,-150.0,0.00021602,2]
[330111104,1718998233348,-150.0,0.00021624,2]
[330111105,1718998233357,-150.0,0.00021631,2]
[330111106,1718998233367,-1500.0,0.00021643,2]
[330111107,1718998233376,-169.62,0.00021644,2]
[330111108,1718998233390,-154.2,0.00021644,2]
[330111109,1718998233400,-1500.0,0.00021648,2]
[330111110,1718998233409,-1500.0,0.00021659,2]
[330111111,1718998233420,-150.0,0.00021671,2]
[330111112,1718998233430,-219.9,0.00021699,3]
[330111113,1718998233440,-391.7049,0.000217,2]
[330111114,1718998233450,-500.0,0.000217,2]
[330111115,1718998233459,-1500.0,0.00021702,2]
[330111116,1718998233469,-2876.26266733,0.00021707,2]
[330111117,1718998233479,-9036.2442,0.00021717,2]
[330111118,1718998233489,-260.2527216,0.00021717,2]
[330111119,1718998233499,-383.99995793,0.00021717,2]
[330111120,1718998233509,-1500.0,0.00021725,2]
[330111121,1718998233518,-438.6614,0.0002173,2]
[330111122,1718998233528,-300.0,0.00021731,2]
[330111123,1718998233537,-172.58,0.00021741,2]
[330111124,1718998233548,-150.0,0.00021759,2]
[330111125,1718998233557,-150.0,0.00021761,2]
[330111126,1718998233567,-150.0,0.00021763,2]
[330111127,1718998233577,-155.21140818,0.00021798,2]
[330111128,1718998233587,-150.0,0.00021801,2]
[330111129,1718998233597,-338.97511584,0.00021806,2]
[330111130,1718998233607,-890599.84508439,0.00021806,2]
[330111131,1718998238394,-168.86606755,0.00012299,2]
[330111134,1718998238404,-24620.56909809,0.00021806,2]
[330111136,1718998238416,-866.13556849,0.00021806,2]
[330111138,1718998238427,-277.0,0.00021806,2]
[330111139,1718998238439,-128317.955629,0.00021806,2]
[330111140,1718998238450,-1609.9999999,0.00021806,2]
[330111141,1718998238461,-73480.0,0.00021806,2]
[330111233,1718998240541,-653.46140955,0.00021806,2]
[330111237,1718998240554,-534.3663736,0.00021806,2]
[330111239,1718998240566,-1283.72202498,0.00021806,2]
[330111241,1718998240579,-1771.82225773,0.00021806,2]
[330111243,1718998240591,-17609.88845552,0.00021806,2]
[330111245,1718998240604,-264881.49053729,0.00021806,2]
[330111246,1718998240616,-66489.84857739,0.00021806,2]
[330111247,1718998241133,-288.40183904,0.00021806,2]
[330111248,1718998241151,-1047.1115,0.00021806,2]
[330111249,1718998241163,-844.96821136,0.00021806,2]
[330111251,1718998243426,-311.51570745,0.00021806,2]
[330111252,1718998243440,-520657.12387708,0.00021806,2]
[330111253,1718998243453,-2789592.79022195,0.00021806,2]
[330111254,1718998243464,-1276.42705946,0.00021806,2]
[330111274,1718998246444,-549.81337909,0.00021806,2]
[330111292,1718998246991,-4212.40073542,0.00021806,2]
[330111295,1718998453448,14682.0157825,0.00011,2]
[330111296,1718998577473,151.81,0.00019924,30]
[330111299,1718998596740,4023.53149375,0.0001,2]
[330111300,1718998635399,150.0,0.0001,2]
[330111301,1718998635421,59.93730037,0.0001,2]
[330111304,1718998658368,150.0,0.00010959,2]
[330111305,1718998658392,150.0,0.00010959,2]
[330111306,1718998658416,26.89,0.00010959,2]
[330111308,1718998730829,150.0,0.00010959,2]
[330111309,1718998730853,94.64167304,0.00010959,2]
[330111310,1718998937434,150.0,0.00010959,2]
[330111311,1718998937457,30.94750062,0.00010959,2]
[330111312,1718999017532,219.28826757,0.00010959,2]
[330111313,1718999046430,-155.47278461,0.00011079,2]
[330111316,1718999227432,-150.0,0.00011741,2]
[330111317,1718999227453,-1223.58816666,0.000118,2]
[330111318,1718999227476,-1141.89204243,0.00012,2]
[330111319,1718999227497,-1247.36037009,0.00012148,2]
[330111320,1718999227519,-364.50139533,0.00012273,2]
[330111321,1718999227543,-150.0,0.00012274,2]
[330111322,1718999227565,-395722.65802549,0.000123,2]
[330111325,1718999282672,151.81,0.00019829,30]
[330111356,1718999432799,-2753.0624,0.000122,2]
[330111357,1718999432809,-300.0,0.00012299,2]
[330111358,1718999432820,-21770.93372151,0.000123,2]
[330111359,1718999432830,-3050.16683534,0.000123,2]
[330111360,1718999432843,-2407.76999996,0.000123,2]
[330111361,1718999432856,-1054.71998718,0.000123,2]
[330111362,1718999432956,-14093.71617752,0.000123,2]
[330111363,1718999432967,-465.85390514,0.00012361,2]
[330111364,1718999432979,-523.13614426,0.00012979,2]
[330111365,1718999432989,-397.89000003,0.0001298,2]
[330111366,1718999432998,-417.97625454,0.00013082,2]
[330111367,1718999433007,-439.99,0.00013352,2]
[330111368,1718999433017,-420.0,0.00013497,2]
[330111369,1718999433027,-300.0,0.00014813,2]
[330111370,1718999433036,-178.58,0.00015072,2]
[330111371,1718999433046,-181.48,0.00015136,2]
[330111372,1718999433059,-673.63,0.0001791,2]
[330111373,1718999433069,-5748.47583411,0.00018611,2]
[330111374,1718999433082,-9235.78643565,0.00018611,2]
[330111375,1718999433095,-278.32388548,0.00018611,2]
[330111376,1718999433106,-626.33967887,0.00018611,2]
[330111377,1718999433190,-8011.07416589,0.00018611,2]
[330111378,1718999433200,-800.0,0.00018652,2]
[330111379,1718999433210,-250.0,0.00018855,2]
[330111380,1718999433220,-446.94,0.00019092,2]
[330111381,1718999433230,-188.04,0.00019655,2]
[330111382,1718999433239,-250.0,0.00019786,2]
[330111383,1718999433249,-1395.66,0.00019821,2]
[330111384,1718999433259,-1729.04,0.00019859,2]
[330111385,1718999433269,-200.0,0.00019895,2]
[330111386,1718999433279,-500.0,0.0002,5]
[330111387,1718999433288,-673.63,0.00020174,2]
[330111388,1718999433298,-171.9,0.00020251,2]
[330111389,1718999433307,-500.0,0.00020547,4]
[330111390,1718999433316,-500.0,0.00020821,4]
[330111391,1718999433326,-512.71,0.00020836,2]
[330111392,1718999433335,-512.71,0.00020842,2]
[330111393,1718999433345,-512.71,0.00020847,2]
[330111394,1718999433354,-512.71,0.00020853,2]
[330111395,1718999433364,-512.71,0.00020858,2]
[330111396,1718999433380,-512.71,0.00020864,2]
[330111397,1718999433392,-512.71,0.00020869,2]
[330111398,1718999433403,-512.71,0.00020875,2]
[330111399,1718999433415,-512.71,0.0002088,2]
[330111400,1718999433424,-512.71,0.00020886,2]
[330111401,1718999433433,-512.71,0.00020891,2]
[330111402,1718999433443,-512.71,0.00020897,2]
[330111403,1718999433452,-200.0,0.00020899,2]
[330111404,1718999433465,-512.71,0.00020902,2]
[330111405,1718999433475,-512.71,0.00020907,2]
[330111406,1718999433485,-512.71,0.00020913,2]
[330111407,1718999433495,-512.71,0.00020918,2]
[330111408,1718999433504,-512.71,0.00020924,2]
[330111409,1718999433514,-512.71,0.00020929,2]
[330111410,1718999433524,-512.71,0.00020935,2]
[330111411,1718999433533,-512.71,0.0002094,2]
[330111412,1718999433543,-800.0,0.00020983,2]
[330111413,1718999433552,-500.0,0.00021095,4]
[330111414,1718999433561,-500.0,0.00021369,4]
[330111415,1718999433570,-1136.4926695,0.00021477,2]
[330111416,1718999433580,-1000.0,0.00021617,2]
[330111417,1718999433590,-2500.0,0.00021617,2]
[330111418,1718999433600,-326.34874348,0.00021617,2]
[330111419,1718999433612,-150.0,0.00021627,2]
[330111420,1718999433621,-150.0,0.0002163,2]
[330111421,1718999433631,-150.0,0.00021632,2]
[330111422,1718999433642,-150.0,0.00021634,2]
[330111423,1718999433653,-150.0,0.00021634,2]
[330111424,1718999433664,-150.0,0.00021638,2]
[330111425,1718999433676,-1500.0,0.00021638,2]
[330111426,1718999433685,-1500.0,0.00021638,2]
[330111427,1718999433695,-150.0,0.0002164,2]
[330111428,1718999433704,-150.0,0.0002164,2]
[330111429,1718999433714,-150.0,0.0002164,2]
[330111430,1718999433723,-150.0,0.00021642,2]
[330111431,1718999433732,-500.0,0.00021643,4]
[330111432,1718999433741,-349.01,0.00021644,2]
[330111433,1718999433750,-136.63547704,0.00021647,2]
[330111434,1718999433762,-13.36452296,0.00021647,2]
[330111435,1718999433772,-150.0,0.00021649,2]
[330111436,1718999433782,-150.0,0.00021649,2]
[330111437,1718999433791,-150.0,0.0002165,2]
[330111438,1718999433800,-150.0,0.00021653,2]
[330111439,1718999433809,-1500.0,0.00021654,2]
[330111440,1718999433819,-150.0,0.00021655,2]
[330111441,1718999433828,-150.0,0.00021655,2]
[330111442,1718999433838,-150.0,0.00021655,2]
[330111443,1718999433847,-150.0,0.00021656,2]
[330111444,1718999433857,-150.0,0.00021656,2]
[330111445,1718999433867,-150.0,0.00021658,2]
[330111446,1718999433876,-150.0,0.00021659,2]
[330111447,1718999433886,-150.0,0.00021661,2]
[330111448,1718999433895,-150.0,0.00021661,2]
[330111449,1718999433906,-150.0,0.00021663,2]
[330111450,1718999433917,-150.0,0.00021663,2]
[330111451,1718999433931,-150.0,0.00021663,2]
[330111452,1718999433940,-150.0,0.00021664,2]
[330111453,1718999433949,-300.0,0.00021665,2]
[330111454,1718999433959,-300.0,0.00021665,2]
[330111455,1718999433968,-1500.0,0.00021665,2]
[330111456,1718999433977,-150.0,0.00021667,2]
[330111457,1718999433986,-150.0,0.00021668,2]
[330111458,1718999433995,-1500.0,0.00021669,2]
[330111459,1718999434005,-150.0,0.0002167,2]
[330111460,1718999434014,-150.0,0.00021672,2]
[330111461,1718999434023,-150.0,0.00021679,2]
[330111462,1718999434032,-150.0,0.0002168,2]
[330111463,1718999434042,-150.0,0.00021681,2]
[330111464,1718999434052,-150.0,0.00021681,2]
[330111465,1718999434061,-150.0,0.00021684,2]
[330111466,1718999434070,-1500.0,0.00021686,2]
[330111467,1718999434079,-150.0,0.00021687,2]
[330111468,1718999434088,-1500.0,0.00021688,2]
[330111469,1718999434097,-1500.0,0.0002169,2]
[330111470,1718999434107,-150.0,0.00021691,2]
[330111471,1718999434116,-300.0,0.00021691,2]
[330111472,1718999434126,-1447.23135713,0.00021692,2]
[330111473,1718999434135,-150.0,0.00021693,2]
[330111474,1718999434144,-1500.0,0.00021693,2]
[330111475,1718999434153,-150.0,0.00021694,2]
[330111476,1718999434165,-150.0,0.00021696,2]
[330111477,1718999434175,-300.0,0.00021697,2]
[330111478,1718999434187,-150.0,0.00021698,2]
[330111479,1718999434197,-1500.0,0.00021699,2]
[330111480,1718999434206,-300.0,0.00021701,2]
[330111481,1718999434216,-150.0,0.00021701,2]
[330111482,1718999434225,-1500.0,0.00021701,2]
[330111483,1718999434235,-271.40579368,0.00021701,2]
[330111484,1718999434244,-150.0,0.00021702,2]
[330111485,1718999434253,-1500.0,0.00021702,2]
[330111486,1718999434263,-1500.0,0.00021704,2]
[330111487,1718999434273,-209.00646061,0.00021706,2]
[330111488,1718999434283,-150.0,0.00021706,2]
[330111489,1718999434294,-150.0,0.00021707,2]
[330111490,1718999434303,-150.0,0.00021709,2]
[330111491,1718999434313,-150.0,0.00021709,2]